bitfinex/quotes_BTCUSD_20240901
["timestamp","ask_amount","ask_price","bid_price","bid_amount"]
[1725183571643,0.19753011,58568.0,58567.0,0.0627]
[1725183572328,0.02678911,58568.0,58567.0,0.0627]
[1725183573217,0.02678911,58568.0,58567.0,0.1050173]
[1725183573548,0.02678911,58568.0,58567.0,0.2817613]
[1725183573629,0.02678911,58568.0,58567.0,0.0797]
[1725183574958,0.02271088,58568.0,58567.0,0.0797]
[1725183575420,0.02271088,58568.0,58567.0,0.017]
[1725183575421,0.87891788,58568.0,58567.0,0.017]
[1725183575670,0.93391788,58568.0,58567.0,0.017]
[1725183575866,1.27540088,58568.0,58567.0,0.017]
[1725183577684,2.55468888,58568.0,58567.0,0.017]
[1725183577901,3.23428688,58568.0,58567.0,0.017]
[1725183578092,2.45558588,58568.0,58567.0,0.017]
[1725183578361,2.392669,58568.0,58567.0,0.017]
[1725183578829,2.392669,58568.0,58567.0,0.01674012]
[1725183578830,2.33696,58568.0,58567.0,0.01674012]
[1725183579043,2.212971,58568.0,58567.0,0.01674012]
[1725183579285,2.30735328,58568.0,58567.0,0.01674012]
[1725183579553,2.25657328,58568.0,58567.0,0.01674012]
[1725183579769,2.25739128,58568.0,58567.0,0.01674012]
[1725183580452,1.99588728,58568.0,58567.0,0.01674012]
[1725183582001,2.02267869,58568.0,58567.0,0.01674012]
[1725183585227,2.02467869,58568.0,58567.0,0.01674012]
[1725183585442,1.99788728,58568.0,58567.0,0.01674012]
[1725183585663,1.99588728,58568.0,58567.0,0.01674012]
[1725183585918,2.70885328,58568.0,58567.0,0.01674012]
[1725183586412,2.71885328,58568.0,58567.0,0.01674012]
[1725183586633,2.89915328,58568.0,58567.0,0.01674012]
[1725183586864,2.89915328,58568.0,58567.0,0.01074012]
[1725183587101,2.89915328,58568.0,58552.0,0.0008998]
[1725183587102,1.195495,58553.0,58552.0,0.0008998]
[1725183587324,1.959486,58553.0,58552.0,0.0008998]
[1725183588019,2.059486,58553.0,58552.0,0.0008998]
[1725183589008,2.08828389,58553.0,58552.0,0.0008998]
[1725183589479,2.08628389,58553.0,58552.0,0.0008998]
[1725183589965,2.08828389,58553.0,58552.0,0.0008998]
[1725183590794,2.08828389,58553.0,58552.0,0.0128998]
[1725183590795,2.46711099,58553.0,58552.0,0.0128998]
[1725183591022,2.47211099,58553.0,58552.0,0.0128998]
[1725183591216,2.47311099,58553.0,58552.0,0.0208998]
[1725183591480,2.52811099,58553.0,58552.0,8e-07]
[1725183591731,2.45975999,58553.0,58552.0,8e-07]
[1725183591974,2.45975999,58553.0,58546.0,0.0008998]
[1725183591975,1.609222,58547.0,58546.0,0.0008998]
[1725183592221,5.61795628,58547.0,58546.0,0.0008998]
[1725183592462,5.73392325,58547.0,58546.0,0.0008998]
[1725183592727,5.76072773,58547.0,58546.0,0.0008998]
[1725183594422,5.82380323,58547.0,58546.0,0.0008998]
[1725183594656,2.10841678,58543.0,58542.0,0.0008998]
[1725183594901,5.26623278,58543.0,58542.0,0.0008998]
[1725183595119,5.39951681,58543.0,58542.0,0.0008998]
[1725183595572,5.24391381,58543.0,58542.0,0.0008998]
[1725183596045,5.23075781,58543.0,58542.0,0.0008998]
[1725183597677,5.23075781,58543.0,58542.0,8e-07]
[1725183597678,5.58683474,58543.0,58542.0,8e-07]
[1725183597898,2.70762174,58543.0,58542.0,8e-07]
[1725183598113,2.71062174,58543.0,58542.0,8e-07]
[1725183598842,2.71662174,58543.0,58542.0,8e-07]
[1725183599309,2.74342895,58543.0,58542.0,8e-07]
[1725183599562,2.74342895,58543.0,58536.0,0.0008998]
[1725183599563,1.951152,58537.0,58536.0,0.0008998]
[1725183599803,6.40091178,58537.0,58536.0,0.0008998]
[1725183600045,6.43147081,58537.0,58536.0,0.0008998]
[1725183600534,6.45827941,58537.0,58536.0,0.0008998]
[1725183601201,6.38354141,58537.0,58536.0,0.0008998]
[1725183601422,5.95911541,58537.0,58536.0,0.0008998]
[1725183603655,5.96411541,58537.0,58536.0,0.0008998]
[1725183604184,5.96711541,58537.0,58536.0,0.0008998]
[1725183604843,5.98106597,58537.0,58536.0,0.0008998]
[1725183606397,2.88905497,58537.0,58536.0,0.0008998]
[1725183606615,2.52115094,58537.0,58536.0,0.0615998]
[1725183606836,2.52115094,58537.0,58536.0,0.0008998]
[1725183607749,2.54415094,58537.0,58536.0,0.0008998]
[1725183607996,2.54215094,58537.0,58536.0,0.0008998]
[1725183608446,2.51534234,58537.0,58536.0,0.0008998]
[1725183608670,2.97307934,58537.0,58536.0,0.0008998]
[1725183609103,2.82787934,58537.0,58536.0,0.0008998]
[1725183609329,2.89644134,58537.0,58536.0,0.0008998]
[1725183610659,2.67360534,58537.0,58536.0,0.0008998]
[1725183611143,2.68360534,58537.0,58536.0,0.0008998]
[1725183611358,2.74973341,58537.0,58536.0,0.0008998]
[1725183611619,2.76453989,58537.0,58536.0,0.0008998]
[1725183611914,2.31667682,58537.0,58536.0,0.0008998]
[1725183614394,2.25369447,58537.0,58536.0,0.0008998]
[1725183614613,2.33282254,58537.0,58536.0,0.0008998]
[1725183614833,2.32282254,58537.0,58536.0,0.0008998]
[1725183615725,2.32482254,58537.0,58536.0,0.0008998]
[1725183616184,2.31982254,58537.0,58536.0,0.0008998]
[1725183616404,2.31782254,58537.0,58536.0,0.0008998]
[1725183616619,2.29101606,58537.0,58536.0,0.0008998]
[1725183617020,2.29601606,58537.0,58536.0,0.0008998]
[1725183618534,2.29801606,58537.0,58536.0,0.0008998]
[1725183619905,2.32482239,58537.0,58536.0,0.0008998]
[1725183621418,2.31982239,58537.0,58536.0,0.0008998]
[1725183621627,2.94602039,58537.0,58536.0,0.0008998]
[1725183622045,2.94402039,58537.0,58536.0,0.0008998]
[1725183622463,2.94902039,58537.0,58536.0,0.0008998]
[1725183623105,2.94402039,58537.0,58536.0,0.0008998]
[1725183623956,2.94902039,58537.0,58536.0,0.0008998]
[1725183625720,2.95102039,58537.0,58536.0,0.0008998]
[1725183625945,2.74023139,58537.0,58536.0,0.0008998]
[1725183626166,2.71407939,58537.0,58536.0,0.0008998]
[1725183626391,2.71707939,58537.0,58536.0,0.0008998]
[1725183627336,2.71907939,58537.0,58536.0,0.0008998]
[1725183627748,2.71707939,58537.0,58536.0,0.0008998]
[1725183628406,2.71907939,58537.0,58536.0,0.0008998]
[1725183628616,2.72907939,58537.0,58536.0,0.0008998]
[1725183630382,2.71707939,58537.0,58536.0,0.0008998]
[1725183630615,2.65295132,58537.0,58536.0,0.0618998]
[1725183631713,2.56557132,58537.0,58536.0,0.0618998]
[1725183631953,2.47592732,58537.0,58536.0,0.0618998]
[1725183633947,2.54205539,58537.0,58536.0,0.0008998]
[1725183635858,2.72235539,58537.0,58536.0,0.0008998]
[1725183636067,2.54205539,58537.0,58536.0,0.0008998]
[1725183636972,2.51524906,58537.0,58536.0,0.0008998]
[1725183637190,2.85691306,58537.0,58536.0,0.0008998]
[1725183637363,2.86691306,58537.0,58536.0,0.0008998]
[1725183638609,2.86391306,58537.0,58536.0,0.0008998]
[1725183638827,2.80878499,58537.0,58536.0,0.0018998]
[1725183639216,2.80378499,58537.0,58536.0,0.0018998]
[1725183639642,2.81578499,58537.0,58536.0,0.0018998]
[1725183640337,2.40645354,58537.0,58536.0,0.0018998]
[1725183640547,2.50092897,58537.0,58536.0,0.0018998]
[1725183640968,1.90228397,58537.0,58536.0,0.0018998]
[1725183641398,5.68825197,58537.0,58536.0,0.0018998]
[1725183641605,5.68612897,58537.0,58536.0,0.0018998]
[1725183641844,6.04476693,58537.0,58536.0,0.0018998]
[1725183642794,6.09976693,58537.0,58536.0,0.0018998]
[1725183643008,6.01100593,58537.0,58536.0,0.0018998]
[1725183647183,6.01100593,58537.0,58536.0,8e-07]
[1725183647328,2.35578693,58537.0,58536.0,8e-07]
[1725183649870,2.2613115,58537.0,58536.0,8e-07]
[1725183650187,2.35578693,58537.0,58536.0,8e-07]
[1725183650880,2.35578693,58537.0,58532.0,0.0008998]
[1725183650881,0.867,58533.0,58532.0,0.0008998]
[1725183651099,6.33033243,58533.0,58532.0,8e-07]
[1725183651328,3.02059239,58533.0,58532.0,8e-07]
[1725183651545,3.36227939,58533.0,58532.0,8e-07]
[1725183653478,3.36427939,58533.0,58532.0,8e-07]
[1725183653718,3.36827939,58533.0,58532.0,8e-07]
[1725183656074,3.54857939,58533.0,58532.0,8e-07]
[1725183656286,2.42380396,58533.0,58532.0,0.0621008]
[1725183656512,2.46144043,58533.0,58532.0,0.0621008]
[1725183658122,7.42442439,58533.0,58532.0,0.0621008]
[1725183658344,7.63887039,58533.0,58532.0,0.0621008]
[1725183658781,7.38472939,58533.0,58532.0,0.0621008]
[1725183661869,6.99501039,58533.0,58532.0,0.0621008]
[1725183662495,6.60318139,58533.0,58532.0,0.0621008]
[1725183662714,5.381076,58533.0,58532.0,0.0621008]
[1725183662952,5.53239039,58533.0,58532.0,0.0621008]
[1725183664944,5.53239039,58533.0,58517.0,0.50630766]
[1725183664945,0.348751,58522.0,58521.0,0.0806]
[1725183665167,1.13569139,58522.0,58521.0,0.0806]
[1725183665390,1.81919339,58522.0,58521.0,0.0806]
[1725183665636,1.81919339,58522.0,58521.0,0.1427]
[1725183666307,5.67306839,58522.0,58521.0,0.1427]
[1725183666749,5.67806839,58522.0,58521.0,0.1437]
[1725183667186,5.67806839,58522.0,58521.0,0.0631]
[1725183668322,5.70588305,58522.0,58521.0,0.0631]
[1725183668986,6.04763405,58522.0,58521.0,0.001]
[1725183669238,6.36802005,58522.0,58521.0,0.001]
[1725183669711,6.36702005,58522.0,58521.0,0.001]
[1725183669929,6.01826905,58522.0,58521.0,0.001]
[1725183670156,6.03246546,58522.0,58521.0,0.001]
[1725183670382,6.37421646,58522.0,58521.0,0.001]
[1725183670602,6.03246546,58522.0,58521.0,0.001]
[1725183670847,5.94881184,58522.0,58521.0,0.001]
[1725183672678,5.95181184,58522.0,58521.0,0.001]
[1725183674175,5.97862694,58522.0,58521.0,0.001]
[1725183675551,4.93385051,58522.0,58521.0,0.0628]
[1725183675811,1.66736251,58522.0,58521.0,0.1388]
[1725183676926,1.69036251,58522.0,58521.0,0.1388]
[1725183678703,1.69036251,58522.0,58521.0,0.1396998]
[1725183681340,1.66354741,58522.0,58521.0,0.1396998]
[1725183682701,1.07755,58522.0,58521.0,0.1396998]
[1725183682927,1.732503,58522.0,58521.0,0.1396998]
[1725183683869,1.938669,58522.0,58521.0,0.1396998]
[1725183684101,2.03314443,58522.0,58521.0,0.1396998]
[1725183684350,2.18998339,58522.0,58521.0,0.1396998]
[1725183684779,2.21679596,58522.0,58521.0,0.1396998]
[1725183685242,2.159957,58522.0,58521.0,0.1396998]
[1725183687627,2.182957,58522.0,58521.0,0.1396998]
[1725183692230,2.183775,58522.0,58521.0,0.1396998]
[1725183693144,1.38279757,58522.0,58521.0,0.1396998]
[1725183693391,0.54825657,58522.0,58521.0,0.1466998]
[1725183693619,0.521444,58522.0,58521.0,0.1446998]
[1725183694062,0.513444,58522.0,58521.0,0.1436998]
[1725183695400,0.171693,58522.0,58521.0,0.1436998]
[1725183696090,0.513444,58522.0,58521.0,0.1436998]
[1725183696779,0.54025469,58522.0,58521.0,0.1436998]
[1725183697456,0.19950369,58522.0,58521.0,0.1436998]
[1725183697901,0.19950369,58522.0,58521.0,0.1456998]
[1725183698341,0.02862869,58522.0,58521.0,0.1456998]
[1725183698553,0.19950369,58522.0,58521.0,0.1456998]
[1725183698772,0.20050369,58522.0,58521.0,0.1456998]
[1725183698990,0.02962869,58522.0,58521.0,0.1456998]
[1725183699210,0.02962869,58522.0,58521.0,0.1436998]
[1725183699440,0.20050369,58522.0,58521.0,0.1436998]
[1725183700319,0.02962869,58522.0,58521.0,0.1436998]
[1725183700548,0.20050369,58522.0,58521.0,0.1436998]
[1725183700757,0.173693,58522.0,58521.0,0.1436998]
[1725183704131,0.20050323,58522.0,58521.0,0.1436998]
[1725183704792,0.54225423,58522.0,58521.0,0.1436998]
[1725183706542,0.54225423,58522.0,58521.0,0.1456998]
[1725183706543,1.18400523,58522.0,58521.0,0.1456998]
[1725183706794,1.18400523,58522.0,58521.0,0.1436998]
[1725183707458,1.18400523,58522.0,58521.0,0.1456998]
[1725183707681,1.18300523,58522.0,58521.0,0.1456998]
[1725183707897,1.18400523,58522.0,58521.0,0.1456998]
[1725183708357,1.18300523,58522.0,58521.0,0.1456998]
[1725183708574,0.84125423,58522.0,58521.0,0.1456998]
[1725183708789,0.32962823,58522.0,58521.0,0.1456998]
[1725183709006,0.84225423,58522.0,58521.0,0.1698073]
[1725183709462,0.50050323,58522.0,58521.0,0.1698073]
[1725183709677,0.49950323,58522.0,58521.0,0.1698073]
[1725183709889,0.49850323,58522.0,58521.0,0.1698073]
[1725183710324,0.49950323,58522.0,58521.0,0.1698073]
[1725183711000,0.49950323,58522.0,58521.0,0.1456998]
[1725183711669,0.50050323,58522.0,58521.0,0.1456998]
[1725183712160,0.473693,58522.0,58521.0,0.1456998]
[1725183715347,0.5005028,58522.0,58521.0,0.1456998]
[1725183717769,0.5005028,58522.0,58521.0,0.1436998]
[1725183717770,0.3296278,58522.0,58521.0,0.1436998]
[1725183718019,0.3296278,58522.0,58521.0,0.22597881]
[1725183718266,0.302818,58522.0,58521.0,0.22597881]
[1725183720067,0.302818,58522.0,58521.0,0.22397881]
[1725183720514,0.302818,58522.0,58521.0,0.1456998]
[1725183721629,0.32962782,58522.0,58521.0,0.1436998]
[1725183721872,0.32962782,58522.0,58521.0,0.1456998]
[1725183722349,0.50050282,58522.0,58521.0,0.1456998]
[1725183724422,0.473693,58522.0,58521.0,0.1456998]
[1725183724635,0.473693,58522.0,58521.0,0.1436998]
[1725183724849,0.473693,58522.0,58521.0,0.1456998]
[1725183725736,0.473693,58522.0,58521.0,0.1436998]
[1725183725964,0.473693,58522.0,58521.0,0.1456998]
[1725183726188,0.815444,58522.0,58521.0,0.1456998]
[1725183726405,0.473693,58522.0,58521.0,0.1456998]
[1725183727083,0.815444,58522.0,58521.0,0.1456998]
[1725183727567,0.50050285,58522.0,58521.0,0.1456998]
[1725183729145,0.26302785,58522.0,58521.0,0.70286064]
[1725183729370,0.169618,58522.0,58521.0,1.12786165]
[1725183729592,0.169618,58522.0,58521.0,1.3418488]
[1725183730049,0.168618,58522.0,58521.0,1.3418488]
[1725183730268,0.168618,58522.0,58521.0,1.50232398]
[1725183730485,0.168618,58522.0,58521.0,1.51132398]
[1725183730702,0.169618,58522.0,58521.0,1.51132398]
[1725183731146,0.167618,58522.0,58521.0,1.50232398]
[1725183731613,0.167618,58522.0,58521.0,1.51132398]
[1725183731614,0.169618,58522.0,58521.0,1.51132398]
[1725183733823,0.169618,58522.0,58521.0,1.50232398]
[1725183733824,0.168618,58522.0,58521.0,1.50232398]
[1725183734041,0.167618,58522.0,58521.0,1.50232398]
[1725183734262,0.168618,58522.0,58521.0,1.51632398]
[1725183734479,0.169618,58522.0,58521.0,1.52332398]
[1725183734705,0.167618,58522.0,58521.0,1.50232398]
[1725183735150,0.168618,58522.0,58521.0,1.51632398]
[1725183735611,0.169618,58522.0,58521.0,1.52332398]
[1725183739399,0.169618,58522.0,58521.0,1.61779941]
[1725183740755,0.170436,58522.0,58521.0,1.61779941]
[1725183743987,0.404945,58541.0,58540.0,0.002]
[1725183743988,0.341645,58541.0,58540.0,0.002]
[1725183744211,0.105,58559.0,58541.0,0.58386]
[1725183744212,0.0633,58549.0,58541.0,0.58386]
[1725183744429,0.15683896,58559.0,58541.0,0.58386]
[1725183744430,0.1708,58548.0,58541.0,0.58386]
[1725183744653,0.170803,58547.0,58541.0,0.58386]
[1725183745294,0.341591,58550.0,58541.0,0.58286]
[1725183745520,0.170804,58547.0,58541.0,0.24122]
[1725183745754,0.170804,58547.0,58541.0,0.24463604]
[1725183746192,0.170804,58547.0,58541.0,0.24363604]
[1725183746416,0.170804,58547.0,58541.0,0.36267859]
[1725183746417,0.001818,58542.0,58541.0,0.36267859]
[1725183747083,0.002818,58542.0,58541.0,0.36967859]
[1725183747283,0.002818,58542.0,58541.0,0.25522]
[1725183747489,0.002818,58542.0,58541.0,0.24822]
[1725183747490,0.001818,58542.0,58541.0,0.24822]
[1725183747705,0.001818,58542.0,58541.0,0.013]
[1725183748582,0.000818,58542.0,58541.0,0.005]
[1725183748988,0.001818,58542.0,58541.0,0.015]
[1725183749636,0.000818,58542.0,58541.0,0.005]
[1725183749873,0.002818,58542.0,58541.0,0.026]
[1725183756770,0.173635,58542.0,58541.0,0.026]
[1725183757850,0.002818,58542.0,58541.0,0.33572]
[1725183758090,0.002818,58542.0,58541.0,0.1649]
[1725183758307,0.002818,58542.0,58541.0,0.33572]
[1725183759175,0.002818,58542.0,58541.0,0.1047]
[1725183759424,0.002818,58542.0,58541.0,0.026]
[1725183760090,0.173635,58542.0,58541.0,0.026]
[1725183761386,0.002818,58542.0,58541.0,0.026]
[1725183761828,0.002818,58542.0,58541.0,1.14862557]
[1725183765762,0.002818,58542.0,58541.0,1.11437523]
[1725183766189,0.002818,58542.0,58541.0,1.45601523]
[1725183766851,0.002818,58542.0,58541.0,1.5834547]
[1725183767062,0.002818,58542.0,58541.0,1.45601523]
[1725183767500,0.001818,58542.0,58541.0,1.57136805]
[1725183767722,0.001818,58542.0,58541.0,1.73200485]
[1725183768144,0.002818,58542.0,58541.0,1.74100485]
[1725183768338,0.001818,58542.0,58541.0,1.73200485]
[1725183768816,0.002818,58542.0,58541.0,1.74100485]
[1725183769290,0.002818,58542.0,58541.0,1.74102951]
[1725183769545,0.002818,58542.0,58541.0,1.74101098]
[1725183769766,0.002818,58542.0,58541.0,1.61365203]
[1725183770202,0.002818,58542.0,58541.0,1.74101098]
[1725183770663,0.002818,58542.0,58541.0,1.61365203]
[1725183771576,0.002818,58542.0,58541.0,1.74101098]
[1725183772072,0.002818,58542.0,58541.0,1.61365203]
[1725183772505,0.002818,58542.0,58541.0,1.74101098]
[1725183772720,0.002818,58542.0,58541.0,1.24073418]
[1725183772949,0.002818,58542.0,58541.0,1.11337523]
[1725183773399,0.002818,58542.0,58541.0,0.50656456]
[1725183773623,0.002818,58542.0,58541.0,0.44639231]
[1725183773889,0.002818,58542.0,58541.0,0.19687231]
[1725183774111,0.58147,58542.0,58541.0,0.0258998]
[1725183774984,0.58047,58542.0,58541.0,0.0148998]
[1725183775212,0.57947,58542.0,58541.0,0.0058998]
[1725183775453,0.57947,58542.0,58541.0,0.0198998]
[1725183775673,0.58047,58542.0,58541.0,0.0338998]
[1725183777057,0.58047,58542.0,58541.0,0.0288998]
[1725183777058,1.99108326,58542.0,58541.0,0.0288998]
[1725183777246,2.04792222,58542.0,58541.0,0.0288998]
[1725183777510,2.38955722,58542.0,58541.0,0.0288998]
[1725183777952,2.38955722,58542.0,58541.0,0.0148998]
[1725183778460,2.40991502,58542.0,58541.0,0.0018998]
[1725183778908,2.73625002,58542.0,58541.0,0.0018998]
[1725183779352,2.73625002,58542.0,58541.0,0.0008998]
[1725183779353,2.72625002,58542.0,58541.0,0.0008998]
[1725183779576,2.68071702,58542.0,58541.0,0.0018998]
[1725183779807,2.69071702,58542.0,58541.0,0.0018998]
[1725183780497,2.7175226,58542.0,58541.0,0.0018998]
[1725183781635,3.0591576,58542.0,58541.0,0.0018998]
[1725183781860,3.0821576,58542.0,58541.0,0.0008998]
[1725183782336,3.06435202,58542.0,58541.0,0.0018998]
[1725183782554,3.07235202,58542.0,58541.0,0.0018998]
[1725183782770,3.07235202,58542.0,58525.0,0.50540786]
[1725183782771,1.46939326,58526.0,58525.0,0.50540786]
[1725183783005,2.76511626,58526.0,58525.0,0.50540786]
[1725183783261,2.76511626,58526.0,58521.0,0.0008998]
[1725183783262,1.196128,58522.0,58521.0,0.0008998]
[1725183783560,2.33003926,58522.0,58521.0,0.0008998]
[1725183783768,2.67179026,58522.0,58521.0,0.0008998]
[1725183784001,2.78362922,58522.0,58521.0,0.0008998]
[1725183785344,2.72679026,58522.0,58521.0,0.0008998]
[1725183786711,2.75460516,58522.0,58521.0,0.0008998]
[1725183787158,2.58373016,58522.0,58521.0,0.0008998]
[1725183787390,2.75360516,58522.0,58521.0,0.0008998]
[1725183787854,2.75360516,58522.0,58513.0,0.005]
[1725183787855,0.180902,58513.0,58512.0,0.0008987]
[1725183788072,4.54080926,58513.0,58512.0,0.0008987]
[1725183788302,4.51344426,58513.0,58512.0,0.0008987]
[1725183788511,3.23128147,58513.0,58512.0,0.0008987]
[1725183788726,3.21870947,58513.0,58512.0,0.0008987]
[1725183788955,3.27970947,58513.0,58512.0,0.0008987]
[1725183789212,3.62151347,58513.0,58512.0,0.0008987]
[1725183789424,3.27970947,58513.0,58512.0,0.0008987]
[1725183789887,0.225554,58495.0,58494.0,0.0008987]
[1725183790112,0.38789926,58495.0,58494.0,0.0008987]
[1725183790399,1.57046522,58495.0,58494.0,0.0008987]
[1725183790598,0.98159848,58495.0,58494.0,0.0008987]
[1725183790815,0.63968948,58495.0,58494.0,0.0008987]
[1725183791103,0.954772,58495.0,58494.0,0.0008987]
[1725183792681,0.955772,58495.0,58494.0,0.0008987]
[1725183793800,1.297681,58495.0,58494.0,0.0008987]
[1725183794270,1.32950617,58495.0,58494.0,0.0008987]
[1725183794484,1.32450617,58495.0,58494.0,0.0008987]
[1725183794924,1.32550617,58495.0,58494.0,0.0008987]
[1725183795345,2.04626943,58495.0,58494.0,0.0008987]
[1725183795525,2.16376943,58495.0,58494.0,0.0008987]
[1725183795962,2.17276743,58495.0,58494.0,0.0008987]
[1725183797043,1.60934943,58495.0,58494.0,0.0008987]
[1725183798116,2.02592543,58495.0,58494.0,0.0008987]
[1725183798390,1.84812586,58495.0,58494.0,0.0008987]
[1725183798528,2.42072834,58495.0,58494.0,0.0008987]
[1725183798763,2.26338308,58495.0,58494.0,0.0008987]
[1725183798956,2.42072834,58495.0,58494.0,0.0008987]
[1725183799171,2.43473104,58495.0,58494.0,0.0008987]
[1725183800033,2.43373104,58495.0,58494.0,0.0008987]
[1725183800265,2.43973104,58495.0,58494.0,0.0008987]
[1725183801623,2.38499156,58495.0,58494.0,0.0008987]
[1725183802043,2.39299156,58495.0,58494.0,0.0008987]
[1725183804206,6.02085356,58495.0,58494.0,0.0008987]
[1725183804401,6.04826256,58495.0,58494.0,0.0008987]
[1725183804691,6.03529656,58495.0,58494.0,0.0008987]
[1725183805283,5.58414656,58495.0,58494.0,0.0008987]
[1725183807701,1.79076364,58495.0,58494.0,0.0008987]
[1725183807913,0.823405,58495.0,58494.0,0.0008987]
[1725183808135,0.194952,58495.0,58494.0,0.0008987]
[1725183808567,0.023998,58495.0,58494.0,0.0008987]
[1725183808806,0.023998,58495.0,58494.0,0.03892266]
[1725183808807,0.015,58495.0,58494.0,0.03892266]
[1725183809013,0.177954,58495.0,58494.0,0.0008987]
[1725183809229,0.512863,58495.0,58494.0,0.0008987]
[1725183809440,0.520863,58495.0,58494.0,0.0008987]
[1725183810143,0.620863,58495.0,58494.0,0.0008987]
[1725183811227,0.621863,58495.0,58494.0,0.0008987]
[1725183811653,0.613863,58495.0,58494.0,0.0008987]
[1725183812087,0.614863,58495.0,58494.0,0.0008987]
[1725183812772,0.955772,58495.0,58494.0,0.0008987]
[1725183812988,0.956772,58495.0,58494.0,0.0008987]
[1725183813217,1.298681,58495.0,58494.0,0.0008987]
[1725183813462,2.813586,58495.0,58494.0,0.0008987]
[1725183813689,1.956394,58495.0,58494.0,0.0008987]
[1725183814420,1.925045,58495.0,58494.0,0.0008987]
[1725183814636,1.912185,58495.0,58494.0,0.0008987]
[1725183814845,1.937185,58495.0,58494.0,0.0008987]
[1725183815299,1.936185,58495.0,58494.0,0.0008987]
[1725183815747,1.940185,58495.0,58494.0,0.0008987]
[1725183816201,1.869985,58495.0,58494.0,0.0008987]
[1725183816679,1.873985,58495.0,58494.0,0.0008987]
[1725183817353,1.871985,58495.0,58494.0,0.0008987]
[1725183817851,1.848985,58495.0,58494.0,0.0008987]
[1725183818081,1.509076,58495.0,58494.0,0.0008987]
[1725183818318,0.8809436,58495.0,58494.0,0.0820987]
[1725183818538,0.854114,58495.0,58494.0,0.0820987]
[1725183818741,1.196023,58495.0,58494.0,0.0820987]
[1725183819873,1.196023,58495.0,58494.0,0.0008987]
[1725183821947,1.22285249,58495.0,58494.0,0.0008987]
[1725183822598,1.33794149,58495.0,58494.0,0.0008987]
[1725183823303,1.58977349,58495.0,58494.0,0.0008987]
[1725183823520,1.57688649,58495.0,58494.0,0.0008987]
[1725183823947,1.59988649,58495.0,58494.0,0.0008987]
[1725183824376,1.60070449,58495.0,58494.0,0.0008987]
[1725183824609,1.573875,58495.0,58494.0,0.0008987]
[1725183825249,1.642482,58495.0,58494.0,0.0008987]
[1725183825461,1.642482,58495.0,58494.0,0.05192636]
[1725183826306,1.708682,58495.0,58494.0,0.05192636]
[1725183826519,1.708682,58495.0,58494.0,0.0008987]
[1725183826520,1.704682,58495.0,58494.0,0.0008987]
[1725183827373,1.711682,58495.0,58494.0,0.05198025]
[1725183827848,1.73851246,58495.0,58494.0,0.05198025]
[1725183828464,1.73651246,58495.0,58494.0,0.0008987]
[1725183828871,1.74251246,58495.0,58494.0,0.0008987]
[1725183829099,1.73551246,58495.0,58494.0,0.05198025]
[1725183829600,1.74251246,58495.0,58494.0,0.0008987]
[1725183830768,1.715682,58495.0,58494.0,0.0008987]
[1725183833778,1.633268,58495.0,58494.0,0.0008987]
[1725183834004,1.6600983,58495.0,58494.0,0.0008987]
[1725183835254,1.6370983,58495.0,58494.0,0.0759987]
[1725183835481,1.6370983,58495.0,58494.0,0.1375987]
[1725183835482,1.0640273,58495.0,58494.0,0.1375987]
[1725183835667,1.037197,58495.0,58494.0,0.1375987]
[1725183838971,1.31768539,58495.0,58494.0,0.1375987]
[1725183839193,1.30484739,58495.0,58494.0,0.1375987]
[1725183841861,1.06402639,58495.0,58494.0,0.1375987]
[1725183842349,0.72211739,58495.0,58494.0,0.1375987]
[1725183842620,0.626681,58495.0,58494.0,0.1375987]
[1725183844214,0.15734526,58515.0,58496.0,0.417002]
[1725183844453,0.15734526,58515.0,58497.0,0.0616]
[1725183844454,0.170937,58501.0,58497.0,0.0616]
[1725183844688,0.15734526,58514.0,58498.0,0.0751]
[1725183844689,0.17094,58500.0,58498.0,0.0751]
[1725183845367,0.170936,58502.0,58498.0,0.0751]
[1725183845825,0.170937,58501.0,58498.0,0.0751]
[1725183847034,0.441847,58506.0,58498.0,0.0751]
[1725183847035,0.512829,58499.0,58498.0,0.0751]
[1725183848184,0.53965547,58499.0,58498.0,0.0751]
[1725183848409,0.02682647,58499.0,58498.0,0.0791]
[1725183848638,0.02682647,58499.0,58498.0,0.0821]
[1725183848884,0.53965547,58499.0,58498.0,0.0781]
[1725183849114,0.19776947,58499.0,58498.0,0.0751]
[1725183849337,0.19776947,58499.0,58498.0,0.0801]
[1725183849557,0.19876947,58499.0,58498.0,0.0841]
[1725183849809,0.02782647,58499.0,58498.0,0.1491]
[1725183851101,0.001,58499.0,58498.0,0.1491]
[1725183860436,0.001818,58499.0,58498.0,0.1491]
[1725183860660,0.02864383,58499.0,58498.0,0.1491]
[1725183863812,0.001818,58499.0,58498.0,0.1491]
[1725183864267,0.001818,58499.0,58498.0,1.37815945]
[1725183864269,0.001818,58499.0,58498.0,1.45489075]
[1725183864533,0.001818,58499.0,58498.0,1.37815945]
[1725183864763,0.001818,58499.0,58498.0,1.50604495]
[1725183864997,0.001818,58499.0,58498.0,1.13838419]
[1725183865232,0.001818,58499.0,58498.0,1.10594674]
[1725183865494,0.000818,58499.0,58498.0,0.657938]
[1725183865738,0.001818,58499.0,58498.0,0.72953134]
[1725183865969,0.001818,58499.0,58498.0,0.70399534]
[1725183866210,0.001818,58499.0,58498.0,0.652938]
[1725183866465,0.001818,58499.0,58498.0,0.70399327]
[1725183867811,0.001818,58499.0,58498.0,0.70799327]
[1725183868088,0.000818,58499.0,58498.0,1.06881098]
[1725183868333,0.001818,58499.0,58498.0,1.02575571]
[1725183868574,0.001818,58499.0,58498.0,1.07678206]
[1725183868809,0.001818,58499.0,58498.0,1.02775571]
[1725183869274,0.002818,58499.0,58498.0,1.03975571]
[1725183869498,0.002818,58499.0,58498.0,1.09077298]
[1725183869732,0.002818,58499.0,58498.0,1.03975571]
[1725183870405,0.002818,58499.0,58498.0,1.02083]
[1725183870682,0.002818,58499.0,58498.0,1.09077783]
[1725183870900,0.002818,58499.0,58498.0,1.03975664]
[1725183871114,0.002818,58499.0,58498.0,1.0907802]
[1725183872677,0.002818,58499.0,58498.0,1.09168]
[1725183873347,0.002818,58499.0,58498.0,1.433572]
[1725183873564,0.002818,58499.0,58498.0,1.26023164]
[1725183873781,0.002818,58499.0,58498.0,1.241305]
[1725183874009,0.002818,58499.0,58498.0,1.26023466]
[1725183874233,0.002818,58499.0,58498.0,1.241305]
[1725183874493,0.002818,58499.0,58498.0,1.26023493]
[1725183875376,0.41076697,58513.0,58503.0,0.34186]
[1725183875590,0.170911,58510.0,58505.0,0.170924]
[1725183876489,0.170911,58510.0,58503.0,0.34186]
[1725183876927,0.341825,58510.0,58503.0,0.002]